Cogmind - Beta 9.6 @@@ ROGUE MODE // 2020.09.08 @ 14:35:35 Player: Hilbert Result: Destroyed by as-02122 with Assembled Heavy Rifle Performance ------------- Evolutions (0) 0 Regions Visited (2) 400 Robots Destroyed (9) 45 Value Destroyed (91) 91 Prototype IDs (0) 0 Alien Tech Used (0) 0 Bonus (0) 0 TOTAL SCORE: 536 Bonus ------- None Cogmind --------- Core Integrity 0/250 Matter 261/300 Energy 81/100 System Corruption 1% Temperature Cool (0) Movement Rolling (90) Location -10/Mines Parts ------- > --- POWER (1) -------- (None) > --- PROPULSION (2) --- Wheel Compact Wheel > --- UTILITY (2) ------ (None) > --- WEAPON (2) ------- (None) > --- INVENTORY (4) ---- Wheel Medium Storage Unit Medium Matter Pod (0) Peak State ------------ > --- POWER ------------ Light Ion Engine > --- PROPULSION ------- Light Treads Wheel > --- UTILITY ---------- Small Storage Unit Terrain Scanner > --- WEAPON ----------- Assault Rifle Light Assault Rifle > --- INVENTORY -------- Light Ion Engine Light Treads Wheel Assault Rifle [Rating: 7] Favorites ----------- Power Light Ion Engine Engine Light Ion Engine Propulsion Light Treads Treads Light Treads Wheel Wheel Utility Medium Storage Unit Device Terrain Scanner Storage Medium Storage Unit Weapon Assault Rifle Ballistic Gun Assault Rifle Build | -11 -10 -10 ------- Run | Scr Mat Min Slots Evolved . | . . . Power . | . . . Propulsion . | . . . Utility . | . . . Weapon . | . . . Parts Attached 19 | 6 2 11 Power 2 | 1 . 1 Engine 2 | 1 . 1 Core . | . . . Reactor . | . . . Propulsion 9 | 2 . 7 Treads 3 | 1 . 2 Leg . | . . . Wheel 6 | 1 . 5 Hover . | . . . Flight . | . . . Utility 4 | 1 2 1 Device 1 | . 1 . Storage 3 | 1 1 1 Processor . | . . . Hackware . | . . . Protection . | . . . Artifact . | . . . Weapon 4 | 2 . 2 Energy Gun . | . . . Energy Cannon . | . . . Ballistic Gun 4 | 2 . 2 Ballistic Cannon . | . . . Launcher . | . . . Special Weapon . | . . . Impact Weapon . | . . . Slashing Weapon . | . . . Piercing Weapon . | . . . Special Melee Weapon . | . . . Unidentified Prototypes . | . . . Parts Lost 5 | . . 5 Power 1 | . . 1 Propulsion 2 | . . 2 Utility 1 | . . 1 Weapon 1 | . . 1 Highest Loss Streak 2 | . . 2 Average Slot Usage (%) 91 | . 96 90 Engine 13 | . 14 13 Treads 16 | . 14 16 Wheel 10 | . 14 9 Device 9 | . 11 8 Storage 14 | . 14 14 Ballistic Gun 25 | . 28 25 Naked Turns 30 | . . 30 Heaviest Build 16 | 10 15 16 Greatest Support 40 | 20 10 40 Greatest Overweight (x) 1 | . 1 1 Average Overweight (x) . | . . . Largest Inventory Capacity 8 | 6 8 8 Average Capacity 7 | 4 6 7 Most Carried 7 | 4 7 7 Average Carried 5 | 1 5 5 Final Capacity 8 | 6 8 4 Final Carried 7 | 4 7 3 Class Distribution -------------------- 100% | Mutant Dominant Class ---------------- Mutant | -10/Materials Mutant | -10/Mines Resources | -11 -10 -10 ----------- Run | Scr Mat Min Matter Collected 551 | 178 . 373 Remotely . | . . . Salvage Created 183 | . . 183 Parts 2 | . . 2 Haulers Intercepted . | . . . Recyclers Shooed . | . . . Parts Field Recycled . | . . . Retrieved Matter . | . . . Parts Self-Destructed . | . . . Prevented . | . . . Kills | -11 -10 -10 ------- Run | Scr Mat Min Combat Hostiles Destroyed 9 | . . 9 Guns 9 | . . 9 Classes Destroyed 2 | . . 2 Grunt 2 | . . 2 Assembled 7 | . . 7 Best Kill Streak 2 | . . 2 Combat Bots Only 2 | . . 2 Max Kills in Single Turn 2 | . . 2 Gunslinging 1 | . . 1 Exploded . | . . . Melee . | . . . Uniques/NPCs Destroyed . | . . . Combat | -11 -10 -10 -------- Run | Scr Mat Min Damage Taken 886 | . 11 875 Core 258 | . . 258 Absorbed by Shields . | . . . Core Remaining (%) 100 | 100 . . Volleys Fired 48 | . . 48 Largest 2 | . . 2 Hottest 40 | . . 40 Shots Fired 91 | . . 91 Gun 91 | . . 91 Cannon . | . . . Launcher . | . . . Special . | . . . Kinetic 91 | . . 91 Thermal . | . . . Explosive . | . . . Electromagnetic . | . . . Robot Hit Streak 8 | . . 8 Robot Miss Streak 4 | . . 4 Penetration Max . | . . . Secondary Targets 2 | . . 2 Max Gunslinging Chain 1 | . . 1 Shots Hit Robots 54 | . . 54 Core Hits 20 | . . 20 Critical Hits . | . . . Critical Kills . | . . . Critical Parts Destroyed . | . . . Melee Attacks . | . . . Impact . | . . . Slashing . | . . . Piercing . | . . . Sneak Attacks . | . . . Combat Hostiles . | . . . Follow-up Attacks . | . . . Damage Inflicted 475 | . . 475 Guns 475 | . . 475 Cannons . | . . . Explosions . | . . . Melee . | . . . Ramming . | . . . Kinetic 475 | . . 475 Thermal . | . . . Explosive . | . . . Electromagnetic . | . . . Impact . | . . . Slashing . | . . . Piercing . | . . . Highest Corruption 1 | . . 1 Average Corruption 1 | . . 1 Corruption Purged . | . . . Effects 1 | . . 1 Message Errors 1 | . . 1 Overload Shots . | . . . Overflow Damage . | . . . Projectiles . | . . . Explosions . | . . . Melee . | . . . Knockbacks . | . . . Impact . | . . . Kinetic . | . . . Secondary . | . . . Self-Inflicted Damage . | . . . Shots . | . . . Rammed . | . . . Targets Rammed . | . . . Kicked . | . . . Crushed . | . . . Highest Temperature 30 | . . 30 Average Temperature 14 | . . 14 Received Heat Transfer 118 | . 6 112 Siege Activations . | . . . Robots Corrupted . | . . . Combat Hostiles . | . . . Parts Fried . | . . . Impact Corruptions . | . . . Robots Melted . | . . . Combat Hostiles . | . . . Parts Melted . | . . . Heat Transferred . | . . . Parts Sabotaged . | . . . Parts Stolen . | . . . Parts Stripped . | . . . Power Chain Reactions . | . . . Missiles Intercepted . | . . . Alert | -11 -10 -10 ------- Run | Scr Mat Min Peak Influence 57 | . 20 57 Average Influence 19 | . 6 22 Maximum Alert Level . | . . . Low Security (%) 100 | 100 100 100 Level 1 . | . . . Level 2 . | . . . Level 3 . | . . . Level 4 . | . . . Level 5 . | . . . High Security . | . . . Max Security . | . . . Squads Dispatched . | . . . Investigation . | . . . Extermination . | . . . Reinforcement . | . . . Assault . | . . . Garrison . | . . . Intercept . | . . . Construction Impeded . | . . . Haulers Reinforced . | . . . Stealth | -11 -10 -10 --------- Run | Scr Mat Min Distress Signals 1 | . . 1 Communications Jammed . | . . . Distress Signals . | . . . Times Spotted 25 | . 3 22 Peak Tracking Total 7 | . 3 7 Tactical Retreats 3 | . . 3 Traps | -11 -10 -10 ------- Run | Scr Mat Min Traps Triggered . | . . . Indirectly . | . . . Trap Hack Attempts . | . . . Triggered . | . . . Disarmed . | . . . Reprogrammed . | . . . Reused . | . . . Traps Extracted . | . . . Installed . | . . . Triggered . | . . . Machines | -11 -10 -10 ---------- Run | Scr Mat Min Machines Disabled 1 | . . 1 Max in Single Turn 1 | . . 1 Machines Sabotaged . | . . . Garrisons Compromised . | . . . Overloaded Fab Kills . | . . . Fab Network Shutdowns . | . . . Hacking | -11 -10 -10 --------- Run | Scr Mat Min Machines Accessed 1 | . 1 . Terminals 1 | . 1 . Fabricators . | . . . Repair Stations . | . . . Recycling Units . | . . . Scanalyzers . | . . . Garrison Access . | . . . Total Hacks 3 | . 3 . Successful 1 | . 1 . Failed 2 | . 2 . Catastrophic . | . . . Database Lockouts . | . . . Manual 3 | . 3 . Terminals 3 | . 3 . Fabricators . | . . . Repair Stations . | . . . Recycling Units . | . . . Scanalyzers . | . . . Garrison Access . | . . . Terminal Hacks . | . . . Fabricator Hacks . | . . . Repair Station Hacks . | . . . Recycling Unit Hacks . | . . . Scanalyzer . | . . . Garrison Access Hacks . | . . . Unauthorized Hacks 1 | . 1 . Terminals 1 | . 1 . Botnet 1 | . 1 . Fabricators . | . . . Repair Stations . | . . . Recycling Units . | . . . Scanalyzers . | . . . Garrison Access . | . . . Data Cores Recovered . | . . . Used . | . . . Hacking Detections 1 | . 1 . Full Trace Events . | . . . Feedback Events . | . . . Feedback Blocked . | . . . Robot Schematics Acquired . | . . . Robots Built . | . . . Matter . | . . . Time . | . . . Total Robot Build Rating . | . . . Part Schematics Acquired . | . . . Parts Built . | . . . Matter . | . . . Time . | . . . Total Part Build Rating . | . . . Parts Repaired . | . . . Time . | . . . Parts Recycled . | . . . Recycled Matter . | . . . Retrieved Matter . | . . . Retrieved Components . | . . . Parts Scanalyzed . | . . . Part Schematics Acquired . | . . . Parts Damaged . | . . . Bothacking | -11 -10 -10 ------------ Run | Scr Mat Min Used RIF Installer . | . . . Robots Hacked . | . . . Non-combat . | . . . Combat . | . . . Robot Hacks Applied . | . . . Relay Couplers Released . | . . . Robots Rewired . | . . . Allies Hacked . | . . . Hacks Repelled . | . . . Allies | -11 -10 -10 -------- Run | Scr Mat Min Total Allies . | . . . Largest Group . | . . . Highest-Rated Group . | . . . Highest-Rated Ally . | . . . Total Orders . | . . . Ally Attacks . | . . . Total Damage . | . . . Kills . | . . . Allies Corrupted . | . . . Allies Melted . | . . . Intel | -11 -10 -10 ------- Run | Scr Mat Min Robot Analysis Total . | . . . Derelict Logs Recovered . | . . . Drone Launches . | . . . Drone Recoveries . | . . . Exploration | -11 -10 -10 ------------- Run | Scr Mat Min Turns Passed 1075 | 62 139 874 Spaces Moved 587 | 60 152 375 Core 72 | 12 . 60 Treads 81 | 6 . 75 Legs . | . . . Wheels 434 | 42 152 240 Hover . | . . . Flight . | . . . Fastest Speed 50 | 50 80 50 Average Speed 94 | 82 87 98 Slowest Speed 160 | 160 90 160 Overloaded Moves . | . . . Propulsion Burnouts . | . . . Robots Hopped . | . . . Cave-ins Triggered . | . . . Exploration Rate (%) 29 | 4 37 47 Regions Visited 2 Branch Regions 1 Pre-discovered Areas . | . . . Known Exits Taken . | . . . Unknown Exits Taken 2 | 1 1 . Scrap Searched . | . . . Spaces Dug . | . . . Terrain Destroyed . | . . . Melee . | . . . Projectile . | . . . AOE . | . . . Actions | -11 -10 -10 --------- Run | Scr Mat Min Total 1016 | 69 157 790 Wait 355 | . . 355 Move 585 | 59 151 375 Hop . | . . . Pick Up 8 | 4 3 1 Fast Attach 10 | 6 1 3 Attach 5 | . . 5 Detach . | . . . Swap 4 | . 1 3 Drop 1 | . 1 . Fire 48 | . . 48 Melee . | . . . Ram . | . . . Kick . | . . . Crush . | . . . Escape Stasis . | . . . Rewire . | . . . Trap . | . . . Miscellaneous . | . . . Route ------- -11/Scrapyard -10/Materials -10/Mines History --------- Turn | Location | Event 6 | -11/Scrapyard | Discovered new exit (range 15) 63 | -11/Scrapyard | Entered Materials 184 | -10/Materials | Discovered new exit (range 13) 202 | -10/Materials | Entered Mines 208 | -10/Mines | Met a Derelict bent on vengeance 307 | -10/Mines | Build established: Mutant 324 | -10/Mines | Assembled infested the area 977 | -10/Mines | Core integrity fell below 50% 1041 | -10/Mines | Released all parts (7) 1052 | -10/Mines | Core integrity fell below 20% 1076 | -10/Mines | Destroyed by as-02122 with Assembled Heavy Rifle Last Messages --------------- 01031_ K-01 Serf destroyed. 01031_ Acquired 20 matter. 01036_ U-05 Engineer lays Concrete. 01041_ Released Sml. Matter Pod. 01041_ Released Lgt. Treads. 01041_ Released Assault Rifle. 01041_ Released Lgt. Ion Engine. 01041_ Released Med. Storage Unit. 01041_ Released Com. Wheel. 01041_ Released Assault Rifle. 01062_ Acquired 19 matter. 01063_ K-01 Serf collects debris. 01066_ Acquired 19 matter. 01066_ Acquired 10 matter. 01067_ K-01 Serf collects debris. 01067_ Acquired 79 matter. 01067_ Acquired 22 matter. 01070_ Acquired 14 matter. 01071_ Acquired Wheel. 01074_ Acquired Com. Wheel. Map ----- +----------------------------------------------------+ | | | | | | | | | | | | | | | | | | | | | | | | | ??#??#?#??????#??##?#??????????????????????? | | ?#????#???##?#####??#?#????????????????????? | | ##???##??###### ##?#??????##??????????????? | | #?#?#???# #?##????? %##????????????? | | #?##???## ! #????????% =##???????????? | | ########## ### #??##?? ?%%!!##??????????? | | ### #?# ! ###??????%%*%=#??????????? | | ??# ########?## #???????%%%%=???????????? | | ??# #?????#?### a####????#% =????????????? | | #?# #?###?#?## aa%###????#%%#????????????? | | #?# #?#??#?## a a*%|######%%#????????????? | | ??# ##??#??# *!!=%%%%%##% #????????????? | | ??# ###?#?## ==%==***% % #????????????? | | ?## #?###?## *!"""= = !@ =!#????????????? | | ### #?##???##=%!"""%**!##= ##????????????? | | ### #????##?##*="""*!=####==%#?????????????? | | ##???#???## % %#??#|%!#?????????????? | | ##?#?##??## **%?#%!*%#?????????????? | | #????#??#?# !=%!|!!##?????????????? | | ###??#?????# !===%*##??????????????? | | ##??????????##### !%%==##???????????????? | | ##? ?????????????##!%**!?????????????????? | | ##?????????????????#%*%*%?????????????????? | | ##??????????????????##=!!=?????????????????? | | #???? ???????????????##%##?????????????????? | | ??????????????????????#!#??????????????????? | | ??????????????????????#%#??????????????????? | | ??????????????????????#=#??????????????????? | | ??##???????????????????????????????????????? | | ???????????????????????????????????????????? | | ???????????????????????????????????????????? | | ???????????????????????????????????????????? | | #####??????????????????????????????????????? | | ???????????????????????????????? | | #####??????????????????????????????????????? | | ???????????????????????????????????????????? | | ???????????????????????????????????????????? | | ???????????????????????????????????????????? | +----------------------------------------------------+ Best States ------------- Heat Dissipation 25 Energy Generation 10 Energy Capacity 125 Matter Stores 267 Matter Capacity 350 Sight Range 16 Terrain Scan Range 14 Terrain Scan Density 10 Evasion (%) 50 Recoil Reduction 2 Item Schematics ----------------- None Robot Schematics ------------------ None Fabricated ------------ Nothing Alien Tech Used ----------------- None Achievements -------------- None Challenges ------------ None Game ------ Seed ArmorAssembledInitializer Manual? 0 Play Time 00:11:50 Cumulative 29.2 hours Start 2020.09.08 @ 14:26:56 End 2020.09.08 @ 14:35:35 Sessions 1 Manual Loads 0 Difficulty Rogue Special Mode None Game No. 64 Rogue 64 Adventurer 0 Explorer 0 Win Type - Total 0 Types 0/0/0/0/0/0/0 Lore% 31 Gallery% 34 Achievement% 26 Wizard Run 0 Options --------- ASCII 0 Keyboard 1 Movement Vi Keybinds 0 Fullscreen 1 Font 18/SmallcapsGlow Map View 76x50 Tactical HUD 1 Map Filters NONE Filters NONE Steam 1 RUN: 3a5f74d7-43db-4547-9db5-50a10ad7c87c